fUST/lending_fUST_20251104
["ID","MTS","AMOUNT","RATE_DAILY","PERIOD"]
[393022777,1762224646755,-840.58,0.0002498,2]
[393022778,1762224646769,-840.58,0.0002498,2]
[393022779,1762224646778,-4481.54786344,0.0002498,2]
[393022780,1762224646794,-31777.05911327,0.0002498,2]
[393022781,1762224646817,-678.92998736,0.0002498,2]
[393022785,1762224813921,253.419307,0.00013699,2]
[393022786,1762224814147,253.419307,0.00020187,2]
[393022787,1762224890004,516.0,0.0003,120]
[393022789,1762225129323,3471.705,0.000211,2]
[393022803,1762225496687,593.51503009,0.000211,2]
[393022804,1762225544767,100009.959999,0.00032875,120]
[393023002,1762225839932,-150.0,0.00022244,2]
[393023005,1762225839942,-118.3475584,0.00022523,2]
[393023016,1762225839986,-243.6524416,0.00022523,2]
[393023019,1762225839996,-500.0,0.00024869,2]
[393023022,1762225840005,-304.0,0.00024899,2]
[393023025,1762225840014,-121.1531501,0.000249,7]
[393023154,1762225842917,-35.4758049,0.000249,7]
[393023156,1762225842927,-543.0,0.00024971,2]
[393023158,1762225842938,-3063.8670088,0.00024972,2]
[393023160,1762225842947,-933.0050344,0.00024972,2]
[393023161,1762225842957,-500.0,0.00024972,2]
[393023162,1762225842966,-500.0,0.00024973,2]
[393023163,1762225842975,-500.0,0.00024973,2]
[393023164,1762225842984,-378.34958846,0.00024973,2]
[393023165,1762225842993,-502.18494236,0.00024973,2]
[393023166,1762225843002,-538.10852414,0.00024973,2]
[393023167,1762225843011,-500.0,0.00024973,2]
[393023168,1762225843020,-502.13384066,0.00024973,2]
[393023169,1762225843029,-500.0,0.00024973,2]
[393023170,1762225843038,-503.05945252,0.00024973,2]
[393023171,1762225843047,-500.0,0.00024973,2]
[393023172,1762225843057,-500.0,0.00024973,2]
[393023173,1762225843066,-23896.46136466,0.00024979,2]
[393023174,1762225843075,-500.0,0.00024989,2]
[393023175,1762225843084,-500.0,0.00024989,2]
[393023176,1762225843094,-500.0,0.00024989,2]
[393023177,1762225843103,-500.0,0.00024989,2]
[393023178,1762225843112,-500.0,0.00024999,2]
[393023179,1762225843120,-500.0,0.00024999,2]
[393023180,1762225843130,-500.0,0.00024999,2]
[393023181,1762225843139,-5294.01412331,0.00025,2]
[393023184,1762225845810,-1373.65448231,0.00025,2]
[393023186,1762226117363,151.0,0.00037152,30]
[393023187,1762226117815,156.587,0.00037152,120]
[393023188,1762226118439,162.380719,0.00037152,120]
[393023189,1762226119074,168.3888056,0.00037152,90]
[393023190,1762226119710,174.61919141,0.00037152,31]
[393023191,1762226120347,181.08010149,0.00037152,30]
[393023192,1762226120956,187.78006525,0.00037152,60]
[393023193,1762226121565,194.72792766,0.00037152,30]
[393023194,1762226122176,201.93286099,0.00037152,120]
[393023195,1762226122784,209.40437684,0.00037152,20]
[393023196,1762226123429,217.15233878,0.00037152,20]
[393023197,1762226124045,225.18697532,0.00037152,20]
[393023198,1762226124672,233.51889341,0.00037152,20]
[393023199,1762226125284,242.15909246,0.00037152,20]
[393023200,1762226125935,242.15909246,0.00037152,20]
[393023201,1762226228086,199.91,0.00032877,120]
[393023202,1762226304126,1091.32392318,0.00037152,120]
[393023203,1762226411825,152.06579541,0.00037156,120]
[393023302,1762227037795,-1521.82829,0.0002411,2]
[393023304,1762227037805,-424.0,0.00024126,2]
[393023306,1762227037814,-526.0,0.00024141,2]
[393023308,1762227037823,-500.0,0.00024141,2]
[393023310,1762227037832,-443.10388278,0.00024141,2]
[393023312,1762227037841,-474.11916474,0.00024141,2]
[393023314,1762227037850,-260.85382329,0.00024141,2]
[393023316,1762227037859,-81083.83565915,0.00024142,2]
[393023912,1762227046120,-4778.60654295,0.00024142,2]
[393023914,1762227046130,-736.45753839,0.00024286,2]
[393023916,1762227046139,-1521.82829,0.00024386,2]
[393023918,1762227046150,-2882.51,0.0002464,10]
[393023920,1762227046160,-24715.86233319,0.0002465,2]
[393023922,1762227046171,-1521.828292,0.00024901,2]
[393023924,1762227046180,-30846.30865325,0.00024971,2]
[393023926,1762227046189,-500.0,0.00024972,2]
[393023928,1762227046198,-579.34479609,0.00024972,2]
[393023930,1762227046207,-500.0,0.00024973,2]
[393023932,1762227046216,-500.0,0.00024973,2]
[393023933,1762227046226,-502.15694266,0.00024973,2]
[393023935,1762227046236,-500.0,0.00024973,2]
[393023938,1762227046247,-505.65367661,0.00024973,2]
[393023940,1762227046256,-251.44066914,0.00024973,2]
[393023942,1762227046265,-500.0,0.00024973,2]
[393023944,1762227046274,-504.39823919,0.00024973,2]
[393023947,1762227046284,-500.0,0.00024997,2]
[393023949,1762227046293,-500.0,0.00024999,2]
[393023951,1762227046302,-500.0,0.00024999,2]
[393023953,1762227046312,-44248.07607225,0.00025,2]
[393023955,1762227046321,-248.94,0.00025,7]
[393023957,1762227046330,-270.038594,0.00025,7]
[393023959,1762227046339,-270.038594,0.00025,7]
[393023971,1762227046442,-270.038594,0.00025,7]
[393023973,1762227046451,-270.038594,0.00025,7]
[393023975,1762227046461,-2231.93574581,0.00025381,2]
[393023977,1762227046471,-1291.73841852,0.00025391,2]
[393023979,1762227046481,-505.56749991,0.00025473,2]
[393023981,1762227046489,-501.60933349,0.00025473,2]
[393023983,1762227046498,-501.47504386,0.00025473,2]
[393023985,1762227046507,-500.0,0.00025473,2]
[393023986,1762227046517,-500.0,0.00025473,2]
[393023988,1762227046526,-503.91610236,0.00025473,2]
[393023990,1762227046535,-507.03273272,0.00025473,2]
[393023992,1762227046544,-501.25361286,0.00025473,2]
[393023994,1762227046553,-510.52912573,0.00025473,2]
[393023996,1762227046562,-503.01953824,0.00025473,2]
[393023998,1762227046571,-501.51241435,0.00025473,2]
[393024000,1762227046580,-501.34694962,0.00025473,2]
[393024002,1762227046589,-103863.511141,0.00025481,2]
[393024004,1762227046598,-765.75,0.00025481,3]
[393024006,1762227046607,-270.038594,0.00025491,7]
[393024008,1762227046616,-270.038594,0.00025491,7]
[393024010,1762227046626,-270.038594,0.00025491,7]
[393024012,1762227046635,-270.038594,0.00025491,7]
[393024014,1762227046644,-501.88568733,0.00025521,2]
[393024016,1762227046653,-1000.0,0.00025521,2]
[393024018,1762227046662,-502.69411424,0.00025521,2]
[393024020,1762227046671,-1000.0,0.00025521,2]
[393024022,1762227046680,-500.0,0.00025657,2]
[393024024,1762227046688,-500.0,0.00025657,2]
[393024026,1762227046698,-500.0,0.00025657,2]
[393024028,1762227046707,-1000.0,0.00026021,2]
[393024030,1762227046716,-1000.0,0.00026021,2]
[393024032,1762227046726,-270.038594,0.00026068,7]
[393024034,1762227046735,-270.038594,0.00026068,7]
[393024036,1762227046744,-270.038594,0.00026068,7]
[393024038,1762227046753,-270.038594,0.00026068,7]
[393024040,1762227046762,-1500.0,0.00026068,2]
[393024042,1762227046771,-1500.0,0.00026068,2]
[393024044,1762227046780,-500.0,0.00026153,2]
[393024046,1762227046789,-590.36319157,0.00026204,2]
[393024048,1762227046798,-989.47782861,0.00026204,2]
[393024050,1762227046807,-476.24380117,0.00026204,2]
[393024052,1762227046816,-501.77946658,0.00026371,2]
[393024054,1762227046825,-1291.73841852,0.00026491,2]
[393024056,1762227046834,-1500.0,0.00026568,2]
[393024057,1762227046843,-1500.0,0.00026568,2]
[393024059,1762227046853,-501.58373111,0.00026573,2]
[393024061,1762227046863,-500.0,0.00026586,2]
[393024063,1762227046872,-500.0,0.00026586,2]
[393024065,1762227046881,-500.0,0.00026586,2]
[393024067,1762227046890,-500.0,0.00026586,2]
[393024069,1762227046899,-500.0,0.00026586,2]
[393024071,1762227046908,-270.038594,0.00026586,7]
[393024073,1762227046918,-270.038594,0.00026586,7]
[393024075,1762227046927,-270.038594,0.00026586,7]
[393024077,1762227046937,-270.038594,0.00026586,7]
[393024079,1762227046946,-500.0,0.00026616,2]
[393024081,1762227046955,-2000.0,0.00026616,2]
[393024083,1762227046964,-1375.68611318,0.00026616,2]
[393024085,1762227046973,-253.419307,0.00026676,2]
[393024087,1762227046982,-169.03465019,0.0002677,2]
[393024089,1762227046991,-504.24695328,0.00026973,2]
[393024091,1762227047001,-508.31377217,0.00026973,2]
[393024093,1762227047010,-500.0,0.00026973,2]
[393024095,1762227047020,-503.29698233,0.00026973,2]
[393024097,1762227047029,-504.61337735,0.00026973,2]
[393024099,1762227047039,-162.425705,0.00026973,2]
[393024101,1762227047048,-103863.511141,0.0002698,2]
[393024103,1762227047057,-270.038594,0.0002699,7]
[393024105,1762227047067,-270.038594,0.0002699,7]
[393024107,1762227047076,-270.038594,0.0002699,7]
[393024109,1762227047085,-270.03860218,0.0002699,7]
[393024111,1762227047093,-28169.91317939,0.0002699,2]
[393024113,1762227047102,-501.41773397,0.00027065,2]
[393024115,1762227047111,-502.64742519,0.00027065,2]
[393024117,1762227047121,-2000.0,0.00027116,2]
[393024119,1762227047130,-502.97133346,0.00027116,2]
[393024121,1762227047139,-2500.0,0.00027164,2]
[393024123,1762227047149,-501.92145372,0.00027273,2]
[393024125,1762227047160,-501.42005037,0.00027273,2]
[393024127,1762227047171,-503.47986803,0.00027273,2]
[393024129,1762227047180,-501.03162508,0.00027273,2]
[393024131,1762227047188,-501.42598829,0.00027273,2]
[393024133,1762227047198,-501.73265629,0.00027273,2]
[393024134,1762227047207,-501.31128797,0.00027273,2]
[393024136,1762227047216,-180.22002167,0.00027273,2]
[393024138,1762227047226,-502.77286911,0.00027273,2]
[393024140,1762227047234,-501.45599802,0.00027273,2]
[393024142,1762227047243,-502.46620196,0.00027273,2]
[393024144,1762227047252,-501.14040446,0.00027273,2]
[393024146,1762227047261,-502.55950506,0.00027273,2]
[393024148,1762227047270,-503.30614913,0.00027273,2]
[393024150,1762227047279,-501.95104138,0.00027273,2]
[393024152,1762227047288,-500.0,0.00027273,2]
[393024154,1762227047297,-500.0,0.00027273,2]
[393024156,1762227047306,-502.4747035,0.00027273,2]
[393024158,1762227047316,-500.0,0.00027487,2]
[393024160,1762227047325,-1000.0,0.00027521,5]
[393024162,1762227047334,-1291.73841852,0.00027591,2]
[393024164,1762227047343,-248.94,0.000276,7]
[393024166,1762227047352,-2500.0,0.00027664,5]
[393024168,1762227047361,-158.42785013,0.00027673,3]
[393024170,1762227047370,-427.68941082,0.00027689,2]
[393024172,1762227047379,-50632.47701043,0.0002769,2]
[393025471,1762227563820,16194.62,0.000211,2]
[393025472,1762227852430,215.40641,0.00013699,2]
[393025473,1762227852657,215.40641,0.00020187,2]
[393025522,1762228232087,-391.24924178,0.0002234,2]
[393025810,1762228237995,-358.79779311,0.0002234,2]
[393025811,1762228238004,-150.0,0.00022453,2]
[393025812,1762228238014,-1220.61892309,0.00022566,2]
[393025813,1762228238049,-3779.38107691,0.00022566,2]
[393025814,1762228238059,-265.0,0.00023999,2]
[393025815,1762228238068,-2000.0,0.00024,14]
[393025816,1762228238078,-2001.62,0.00024,14]
[393025817,1762228238094,-500.0,0.00026572,2]
[393025818,1762228238108,-373.83685581,0.00026572,2]
[393025819,1762228238118,-500.0,0.00026572,2]
[393025820,1762228238128,-500.0,0.00026572,2]
[393025822,1762228238138,-500.0,0.00026572,2]
[393025823,1762228238148,-500.0,0.00026572,2]
[393025824,1762228238158,-215.40641,0.00026676,2]
[393025825,1762228238168,-169.03465019,0.00026725,2]
[393025826,1762228238179,-500.0,0.00027771,5]
[393025827,1762228238189,-502.45284674,0.00027771,2]
[393025828,1762228238199,-427.5324233,0.00028138,5]
[393025829,1762228238209,-500.0,0.00028188,2]
[393025830,1762228238220,-1000.0,0.00028319,5]
[393025831,1762228238230,-168.0,0.00028536,2]
[393025832,1762228238240,-1000.0,0.00028735,2]
[393025833,1762228238250,-1500.0,0.00028867,5]
[393025834,1762228238260,-168.0,0.00029195,2]
[393025835,1762228238270,-416.291,0.00029201,2]
[393025836,1762228238281,-1500.0,0.00029283,2]
[393025837,1762228238292,-2000.0,0.00029415,5]
[393025838,1762228238303,-399.46520389,0.00029721,2]
[393025839,1762228238313,-160.0,0.00029722,2]
[393025840,1762228238323,-2000.0,0.00029831,2]
[393025841,1762228238334,-412.86149981,0.00029862,5]
[393025842,1762228238344,-151.0,0.000299,10]
[393025843,1762228238354,-2500.0,0.00029963,5]
[393025844,1762228238364,-14655.27626155,0.0003,20]
[393025845,1762228238373,-1500.63241819,0.00030379,2]
[393025846,1762228238383,-3000.0,0.00030511,5]
[393025847,1762228238393,-3426.25,0.00031,30]
[393025848,1762228238403,-3500.0,0.00031059,5]
[393025849,1762228238413,-186.90689535,0.00031218,30]
[393025850,1762228238423,-156.628955,0.00031363,7]
[393025851,1762228238433,-200.0,0.00031416,31]
[393025852,1762228238443,-412.0,0.00032201,2]
[393025853,1762228238454,-501.84252137,0.0003253,5]
[393025854,1762228238464,-604.51350103,0.00032573,5]
[393025855,1762228238474,-151.0,0.000326,13]
[393025856,1762228238483,-2137.07808384,0.00032858,2]
[393025857,1762228238493,-2690.42610972,0.00032867,2]
[393025858,1762228238503,-2690.42610968,0.00032875,2]
[393025859,1762228238519,-249.161079,0.00032877,31]
[393025860,1762228238528,-2690.42610968,0.00032884,2]
[393025861,1762228238539,-2690.42610968,0.00032892,2]
[393025862,1762228238548,-10000.0,0.000329,30]
[393025863,1762228238559,-2690.42610968,0.000329,2]
[393025864,1762228238569,-2402.09,0.00032937,10]
[393025865,1762228238580,-2001.74,0.00032937,10]
[393025866,1762228238590,-252610.11249003,0.00032948,2]
[393025867,1762228238603,-202117.56839097,0.00032948,2]
[393025868,1762228238613,-5128.69990785,0.00032967,2]
[393025869,1762228238625,-75026.80736116,0.00032967,2]
[393025870,1762228238637,-3333.73862838,0.00032967,2]
[393026221,1762228243259,-468.942,0.00032967,2]
[393026222,1762228243270,-11654.86479067,0.00032967,2]
[393026223,1762228243282,-26857.64249033,0.00032967,2]
[393026224,1762228243293,-13296.96071498,0.00032967,2]
[393026225,1762228243303,-300.0,0.00032967,2]
[393026418,1762228246176,-276.5150003,0.00032967,2]
[393026428,1762228511512,151.0,0.00037212,30]
[393026429,1762228512110,156.587,0.00037212,120]
[393026430,1762228512735,162.380719,0.00037212,120]
[393026431,1762228513353,168.3888056,0.00037212,90]
[393026432,1762228513971,174.61919141,0.00037212,31]
[393026433,1762228514604,181.08010149,0.00037212,30]
[393026434,1762228515250,187.78006525,0.00037212,60]
[393026435,1762228515873,194.72792766,0.00037212,30]
[393026436,1762228516514,201.93286099,0.00037212,120]
[393026437,1762228517129,209.40437684,0.00037212,20]
[393026438,1762228517744,217.15233878,0.00037212,20]
[393026439,1762228518390,225.18697532,0.00037212,20]
[393026440,1762228519063,233.51889341,0.00037212,20]
[393026441,1762228519694,242.15909246,0.00037212,20]
[393026442,1762228520305,242.15909246,0.00037212,20]
[393026444,1762229280024,244.54,0.00017483,2]
[393026483,1762229432254,-2203.45128676,0.0002511,2]
[393026485,1762229432264,-150.0,0.00025363,2]
[393026487,1762229432274,-502.0,0.00025838,2]
[393026490,1762229432284,-752.16421023,0.00026272,2]
[393026492,1762229432294,-176.16736778,0.00026272,2]
[393026494,1762229432303,-1424.71872256,0.00026367,2]
[393026496,1762229432312,-71.96667433,0.00026371,2]
[393026498,1762229432327,-228.03332567,0.00026371,2]
[393026500,1762229432336,-300.0,0.00026371,2]
[393026502,1762229432346,-62.75134384,0.00026371,2]
[393026507,1762229432383,-237.24865616,0.00026371,2]
[393026509,1762229432392,-167.78592704,0.00026371,2]
[393026632,1762229438153,-132.21407296,0.00026371,2]
[393026633,1762229438163,-322.96842248,0.00026371,2]
[393026634,1762229438174,-877.03157752,0.00026371,2]
[393026635,1762229438184,-300.0,0.00026371,2]
[393026636,1762229438193,-335.87396564,0.00026371,2]
[393026637,1762229438202,-500.0,0.00026371,2]
[393026638,1762229438211,-159.31804669,0.00026371,2]
[393026639,1762229438222,-424.49291327,0.00026371,2]
[393026640,1762229438231,-500.0,0.00026371,2]
[393026641,1762229438241,-500.0,0.00026371,2]
[393026642,1762229438251,-365.07505998,0.00026371,2]
[393026643,1762229438271,-134.92494002,0.00026371,2]
[393026644,1762229438281,-500.0,0.00026371,2]
[393026645,1762229438290,-384.03465996,0.00026371,2]
[393026646,1762229438302,-115.96534004,0.00026371,2]
[393026647,1762229438312,-500.0,0.00026371,2]
[393026648,1762229438322,-500.0,0.00026371,2]
[393026649,1762229438332,-500.0,0.00026371,2]
[393026650,1762229438342,-500.0,0.00026371,2]
[393026651,1762229438353,-500.0,0.00026371,2]
[393026652,1762229438362,-500.0,0.00026371,2]
[393026653,1762229438372,-500.0,0.00026371,2]
[393026654,1762229438381,-500.0,0.00026371,2]
[393026655,1762229438391,-500.0,0.00026371,2]
[393026656,1762229438401,-484.73472062,0.00026371,2]
[393026657,1762229438412,-15.26527938,0.00026371,2]
[393026658,1762229438421,-500.0,0.00026371,2]
[393026659,1762229438431,-500.0,0.00026371,2]
[393026660,1762229438440,-500.0,0.00026371,2]
[393026661,1762229438449,-500.0,0.00026371,2]
[393026662,1762229438459,-500.0,0.00026371,2]
[393026663,1762229438468,-500.0,0.00026371,2]
[393026664,1762229438478,-500.0,0.00026371,2]
[393026665,1762229438487,-500.0,0.00026371,2]
[393026666,1762229438497,-609.27713762,0.00026371,2]
[393026667,1762229438507,-500.0,0.00026371,2]
[393026668,1762229438517,-500.0,0.00026371,2]
[393026669,1762229438527,-296.68323393,0.00026371,2]
[393026670,1762229438537,-500.0,0.00026371,2]
[393026671,1762229438547,-500.0,0.00026371,2]
[393026672,1762229438557,-500.0,0.00026371,2]
[393026673,1762229438568,-500.0,0.00026371,2]
[393026674,1762229438578,-500.0,0.00026371,2]
[393026675,1762229438588,-500.0,0.00026371,2]
[393026676,1762229438598,-500.0,0.00026371,2]
[393026677,1762229438609,-500.0,0.00026371,2]
[393026678,1762229438619,-500.0,0.00026371,2]
[393026679,1762229438629,-500.0,0.00026371,2]
[393026680,1762229438639,-500.0,0.00026371,2]
[393026681,1762229438650,-500.0,0.00026371,2]
[393026682,1762229438660,-500.0,0.00026371,2]
[393026683,1762229438670,-500.0,0.00026371,2]
[393026684,1762229438680,-500.0,0.00026371,2]
[393026685,1762229438690,-500.0,0.00026371,2]
[393026686,1762229438700,-500.0,0.00026371,2]
[393026687,1762229438710,-500.0,0.00026371,2]
[393026688,1762229438719,-500.0,0.00026371,2]
[393026689,1762229438729,-339.81739498,0.00026371,2]
[393026690,1762229438739,-500.0,0.00026371,2]
[393026691,1762229438748,-500.0,0.00026371,2]
[393026692,1762229438758,-550.88368558,0.00026371,2]
[393026693,1762229438767,-500.0,0.00026371,2]
[393026694,1762229438777,-500.0,0.00026371,2]
[393026695,1762229438786,-500.0,0.00026371,2]
[393026696,1762229438796,-500.0,0.00026371,2]
[393026697,1762229438805,-500.0,0.00026371,2]
[393026698,1762229438815,-500.0,0.00026371,2]
[393026699,1762229438824,-500.0,0.00026371,2]
[393026700,1762229438833,-500.0,0.00026371,2]
[393026701,1762229438843,-500.0,0.00026371,2]
[393026702,1762229438857,-500.0,0.00026371,2]
[393026703,1762229438867,-500.0,0.00026371,2]
[393026704,1762229438876,-500.0,0.00026371,2]
[393026705,1762229438886,-500.0,0.00026371,2]
[393026706,1762229438895,-500.0,0.00026371,2]
[393026707,1762229438904,-500.0,0.00026371,2]
[393026708,1762229438913,-500.0,0.00026371,2]
[393026709,1762229438923,-500.0,0.00026371,2]
[393026710,1762229438933,-500.0,0.00026371,2]
[393026711,1762229438942,-500.0,0.00026371,2]
[393026712,1762229438951,-500.0,0.00026371,2]
[393026713,1762229438960,-500.0,0.00026371,2]
[393026714,1762229438969,-500.0,0.00026371,2]
[393026715,1762229438978,-500.0,0.00026371,2]
[393026716,1762229438987,-500.0,0.00026371,2]
[393026717,1762229438997,-500.0,0.00026371,2]
[393026718,1762229439006,-397.70701924,0.00026371,2]
[393026719,1762229439015,-500.0,0.00026371,2]
[393026720,1762229439025,-316.65264828,0.00026371,2]
[393026721,1762229439141,-183.34735172,0.00026371,2]
[393026722,1762229439231,-500.0,0.00026371,2]
[393026723,1762229439241,-500.0,0.00026371,2]
[393026724,1762229439250,-1200.0,0.00026372,2]
[393026725,1762229439259,-511.81247542,0.00026372,2]
[393026726,1762229439268,-142.44419456,0.00026373,2]
[393026727,1762229439280,-4514.97678749,0.00026373,2]
[393026728,1762229439292,-4517.25879562,0.00026373,2]
[393026729,1762229439303,-720.62718403,0.00026373,2]
[393026730,1762229439317,-425.78757059,0.00026373,2]
[393026731,1762229439329,-3699.48516193,0.00026373,2]
[393026732,1762229439339,-965.34,0.00026449,10]
[393026733,1762229439349,-17453.36784971,0.00026459,2]
[393026734,1762229439362,-19829.08743524,0.00026459,2]
[393026735,1762229439373,-120501.32914054,0.00026459,2]
[393026736,1762229439385,-6144.92017638,0.00026459,2]
[393026754,1762229440361,-1010.8575363,0.00026459,2]
[393026841,1762229443292,-2253.92377803,0.00026459,2]
[393026842,1762229443347,-272.83182917,0.00026459,2]
[393026843,1762229443358,-2293.9,0.00026459,2]
[393026849,1762229446335,-1828.9342412,0.00026459,2]
[393026850,1762229446347,-881.335689,0.00026459,2]
[393026851,1762229446359,-5364.3551728,0.00026459,2]
[393026852,1762229446450,-23032.28395865,0.00026459,2]
[393026853,1762229446496,-1898.74304189,0.00026459,2]
[393026854,1762230107824,2110.509999,0.00037155,60]
[393026904,1762230632396,-7317.27792142,0.00024142,2]
[393026910,1762230632455,-1922.51014996,0.00024142,2]
[393026912,1762230632467,-425.0,0.00024142,2]
[393026914,1762230632479,-300.0,0.00024649,2]
[393026916,1762230632491,-500.0,0.00024649,2]
[393026918,1762230632502,-500.0,0.00024649,2]
[393026920,1762230632514,-199.63147044,0.00024649,2]
[393026922,1762230632525,-345.47523751,0.00024649,2]
[393026924,1762230632537,-500.0,0.00024649,2]
[393026926,1762230632549,-500.0,0.00024649,2]
[393026928,1762230632560,-283.43152062,0.00024649,2]
[393026930,1762230632572,-500.0,0.00024649,2]
[393026932,1762230632583,-482.20193278,0.00024649,2]
[393026935,1762230632595,-500.0,0.00024649,2]
[393026937,1762230632607,-439.77070192,0.00024649,2]
[393026941,1762230632619,-3395.80783301,0.0002465,2]
[393026942,1762230632631,-150.0,0.00025345,2]
[393026945,1762230632642,-10011.0274522,0.00025492,2]
[393026946,1762230632655,-1595.56266524,0.00025979,2]
[393026948,1762230632667,-1595.56266524,0.00026034,2]
[393026951,1762230632686,-1206.27244867,0.00026158,2]
[393026954,1762230632708,-442.89081218,0.00026259,2]
[393026957,1762230632724,-1507.23,0.00026339,10]
[393026959,1762230632739,-235.11177595,0.00026348,2]
[393026961,1762230632753,-11371.71843316,0.00026349,2]
[393026964,1762230632771,-89748.81997308,0.00026349,2]
[393026967,1762230632798,-753.34354079,0.00026349,2]
[393026970,1762230632813,-1271.03173786,0.00026349,2]
[393026972,1762230632830,-735.50781489,0.00026349,2]
[393027010,1762230638440,-14536.5989462,0.00026349,2]
[393027016,1762230638490,-3266.15425307,0.00026349,2]
[393027510,1762230643585,-542.41,0.00026339,10]
[393027823,1762230646491,-286.30336043,0.00026339,10]
[393027825,1762230646504,-427.30663957,0.00026339,10]
[393027827,1762230646513,-1388.83757765,0.00026349,2]
[393027835,1762230646608,-1980.61212347,0.00026349,2]
[393028551,1762230778064,8445.0,0.00032877,120]
[393028552,1762230908610,151.0,0.00037152,60]
[393028553,1762230909202,156.587,0.00037152,60]
[393028554,1762230909828,162.380719,0.00037152,60]
[393028555,1762230910484,168.3888056,0.00037152,60]
[393028556,1762230911114,174.61919141,0.00037152,60]
[393028557,1762230911764,181.08010149,0.00037152,60]
[393028558,1762230912395,187.78006525,0.00037152,60]
[393028559,1762230913019,194.72792766,0.00037152,60]
[393028560,1762230913692,201.93286099,0.00037152,60]
[393028561,1762230914299,209.40437684,0.00037152,60]
[393028562,1762230914946,217.15233878,0.00037152,60]
[393028563,1762230915634,225.18697532,0.00037152,60]
[393028564,1762230916232,233.51889341,0.00037152,60]
[393028565,1762230916984,242.15909246,0.00037152,60]
[393028566,1762230917694,242.15909246,0.00037152,60]
[393028568,1762230941535,183.095448,0.00013699,2]
[393028569,1762230941745,183.095448,0.00020187,2]
[393028571,1762231083613,163.13,0.00017483,14]
[393028572,1762231415032,150.0,0.0002091,2]
[393028573,1762231479867,150.0,0.00020848,2]
[393028574,1762231544317,152.07553962,0.00020744,4]
[393028575,1762231608238,235.829245,0.00037153,20]
[393028576,1762231641422,1840.9102413,0.00037153,120]
[393028602,1762231832670,-625.36181593,0.00024141,2]
[393029060,1762231838725,-157.63818407,0.00024141,2]
[393029061,1762231838735,-3552.81435881,0.00024142,2]
[393029062,1762231838745,-934.24,0.0002622,10]
[393029063,1762231838755,-1781.53,0.0002622,10]
[393029064,1762231838765,-301.2403124,0.00026229,2]
[393029065,1762231838775,-215.53007799,0.00026229,2]
[393029066,1762231838784,-625.0,0.00026229,2]
[393029067,1762231838794,-37060.76572,0.0002623,2]
[393029068,1762231838806,-3459.91468453,0.0002623,2]
[393029082,1762231844690,-1484.6,0.0002622,10]
[393029084,1762231844699,-87283.82583857,0.0002623,2]
[393029087,1762231844748,-31311.95233092,0.0002623,2]
[393029095,1762231846712,-15000.0,0.0002623,2]
[393029096,1762232712130,150.0,0.00032876,120]
[393029097,1762232769430,51188.6795,0.0003715,30]
[393029098,1762232787948,3210.56,0.0003715,60]
[393029099,1762232833497,37653.197599,0.0003715,30]
[393029125,1762233031885,-381.0,0.00023024,2]
[393029127,1762233031894,-160.11646766,0.00025546,2]
[393029367,1762233037720,-90.82487739,0.00025546,2]
[393029368,1762233037729,-898.81888758,0.00026119,2]
[393029387,1762233040436,-412.36854162,0.00026119,2]
[393029389,1762233040447,-180.18,0.00026208,2]
[393029391,1762233040456,-1895.65,0.00026209,10]
[393029393,1762233040465,-1579.71,0.00026209,10]
[393029395,1762233040474,-1316.42,0.00026209,10]
[393029397,1762233040483,-180.18,0.00026209,2]
[393029399,1762233040492,-210.86821868,0.00026217,2]
[393029401,1762233040501,-438.23950169,0.00026217,2]
[393029403,1762233040510,-500.0,0.00026218,2]